fUSD/lending_fUSD_20251206
["ID","MTS","AMOUNT","RATE_DAILY","PERIOD"]
[396504222,1765012774391,-2018.0,0.0005369,71]
[396504223,1765012774419,-600.0,0.00053699,30]
[396504224,1765012774448,-151.0,0.000537,120]
[396504225,1765012774478,-626.92944565,0.0005376,30]
[396504226,1765012774507,-500.0,0.00053781,90]
[396504227,1765012774536,-506.0,0.000538,120]
[396504228,1765012774565,-2502.31623094,0.0005385,120]
[396504229,1765012774592,-528231.55123627,0.00053899,120]
[396504230,1765012774622,-186.0,0.000539,120]
[396504231,1765012774651,-499.60780899,0.000539,120]
[396504232,1765012774684,-1162.11508375,0.00053962,120]
[396504233,1765012774714,-2147.49426439,0.00053979,120]
[396504234,1765012774746,-890.8,0.0005398,120]
[396504235,1765012774779,-3637.88395676,0.00053988,120]
[396504236,1765012774810,-1528.75656189,0.00053991,120]
[396504237,1765012774842,-544.02393143,0.00053992,120]
[396504238,1765012774963,-900.0,0.00054,60]
[396504239,1765012774997,-469.09,0.00054,30]
[396504240,1765012775026,-1453.11351947,0.00054,120]
[396504241,1765012775057,-150.05472656,0.00054,120]
[396504242,1765012775090,-251.85221069,0.00054,120]
[396504243,1765012775120,-487.0065318,0.00054,30]
[396504244,1765012775148,-388.84288388,0.00054,30]
[396504245,1765012775176,-454.66495039,0.00054,30]
[396504246,1765012775204,-764.53518817,0.00054,120]
[396504247,1765012775232,-1928.21237675,0.00054,120]
[396504248,1765012775261,-300.0,0.00054,120]
[396504249,1765012775289,-200.0,0.00054,40]
[396504250,1765012775316,-234.0,0.00054,75]
[396504251,1765012775343,-500.0,0.00054055,90]
[396504252,1765012775371,-151.0,0.000542,120]
[396504253,1765012775400,-600.0,0.00054247,30]
[396504254,1765012775429,-186.0,0.000543,120]
[396504255,1765012775459,-2068.8127105,0.0005432,65]
[396504256,1765012775488,-8999.99999801,0.00054321,31]
[396504257,1765012775516,-500.0,0.00054329,90]
[396504258,1765012775544,-2759.0528536,0.000545,120]
[396504259,1765012775572,-263.43860239,0.00054547,120]
[396504260,1765012775602,-642.69163109,0.00054548,60]
[396504261,1765012775631,-900.0,0.00054548,60]
[396504262,1765012775660,-2110000.0,0.0005459,30]
[396504263,1765012775691,-1068849.98695828,0.000546,60]
[396504264,1765012775720,-156818.32656133,0.000546,60]
[396504267,1765012780619,-1000.0,0.00049668,30]
[396504268,1765012780660,-3033420.38825818,0.000546,60]
[396504269,1765012780692,-436895.57172795,0.000546,60]
[396504270,1765012780723,-500.0,0.00054603,90]
[396504271,1765012780754,-151.0,0.000547,120]
[396504272,1765012780786,-647.78325905,0.00054767,120]
[396504273,1765012780815,-647.78325905,0.00054767,120]
[396504274,1765012780846,-647.78325905,0.00054767,120]
[396504275,1765012780875,-647.78325905,0.00054767,120]
[396504276,1765012780904,-647.78325905,0.00054767,120]
[396504277,1765012780933,-647.78325905,0.00054767,120]
[396504278,1765012780963,-647.78325905,0.00054767,120]
[396504279,1765012780993,-647.78325905,0.00054767,120]
[396504280,1765012781022,-647.78325905,0.00054767,120]
[396504281,1765012781050,-647.78325903,0.00054767,120]
[396504283,1765012781078,-647.78325903,0.00054767,120]
[396504284,1765012781107,-647.78325903,0.00054767,120]
[396504285,1765012781138,-647.78325903,0.00054767,120]
[396504286,1765012781167,-647.78325903,0.00054767,120]
[396504287,1765012781197,-647.78325903,0.00054767,120]
[396504288,1765012781228,-647.78325903,0.00054767,120]
[396504289,1765012781258,-647.78325903,0.00054767,120]
[396504290,1765012781286,-647.78325903,0.00054767,120]
[396504291,1765012781316,-647.78325903,0.00054767,120]
[396504292,1765012781344,-647.78325903,0.00054767,120]
[396504293,1765012781373,-151.29184422,0.00054767,120]
[396504294,1765012781404,-1097.0,0.00054767,30]
[396504296,1765012781655,151.0,0.00054603,120]
[396504297,1765012781702,151.0,0.00054603,120]
[396504300,1765012801270,1200.0,0.00015134,2]
[396504301,1765012801307,300.0,0.00015134,2]
[396504303,1765012811947,300.0,0.00015135,2]
[396504304,1765012812412,-262.10058499,0.00015135,2]
[396504306,1765012814367,-154.04791848,0.00015135,2]
[396504309,1765012835508,708.79,0.00014973,2]
[396504317,1765012864309,222.28516436,0.00015035,2]
[396504321,1765012893015,1083.094,0.00014833,2]
[396504322,1765012893137,169.907,0.00014833,2]
[396504329,1765012941605,151.0,0.00015135,2]
[396504330,1765012942211,151.0,0.00015135,2]
[396504331,1765012942839,151.0,0.00015135,2]
[396504332,1765012943462,151.0,0.00015135,2]
[396504333,1765012944104,151.0,0.00015135,2]
[396504334,1765012945648,151.0,0.00015135,2]
[396504335,1765012945825,151.0,0.00015135,2]
[396504336,1765012946197,151.0,0.00015135,2]
[396504337,1765012946820,151.0,0.00015135,2]
[396504338,1765012947429,151.0,0.00015135,2]
[396504339,1765012948067,151.0,0.00015135,2]
[396504340,1765012948634,151.0,0.00015135,2]
[396504341,1765012949233,120.8115136,0.00015135,2]
[396504342,1765012949255,30.1884864,0.00015135,2]
[396504343,1765012949866,284.19592129,0.00015135,2]
[396504344,1765012950187,-237.47725156,0.00015135,2]
[396504345,1765012957494,-9655.61148932,0.00015135,2]
[396504346,1765012957640,-10000.01,0.00015135,2]
[396504347,1765012957758,-10000.01,0.00015135,2]
[396504348,1765012957895,-10000.01,0.00015135,2]
[396504349,1765012957997,-10000.01,0.00015135,2]
[396504350,1765012959849,-10000.01,0.00015135,2]
[396504351,1765012959950,-10000.01,0.00015135,2]
[396504352,1765012960059,-10000.01,0.00015135,2]
[396504353,1765012960164,-10000.01,0.00015135,2]
[396504354,1765012960306,-10000.01,0.00015135,2]
[396504355,1765012963007,-10000.01,0.00015135,2]
[396504356,1765012963118,-10000.01,0.00015135,2]
[396504357,1765012963215,-10000.01,0.00015135,2]
[396504358,1765012963321,-10000.01,0.00015135,2]
[396504359,1765012963454,-10000.01,0.00015135,2]
[396504360,1765012967417,3634.57,0.00015105,2]
[396504369,1765013019912,2751.0,0.00014961,2]
[396504374,1765013047372,7249.01,0.00015035,2]
[396504375,1765013047394,3533.8380898,0.00015035,2]
[396504376,1765013101209,300.0,0.00015134,2]
[396504377,1765013101261,1200.0,0.00015134,2]
[396504378,1765013112925,4966.1719102,0.00015035,2]
[396504379,1765013112952,1319.10954704,0.00015035,2]
[396504380,1765013113819,-177.29240931,0.00015135,2]
[396504382,1765013127451,-191.4412621,0.00015135,2]
[396504383,1765013129357,-157.96758656,0.00015135,2]
[396504384,1765013131522,507.17450848,0.00015135,2]
[396504385,1765013132138,-185.86081231,0.00015135,2]
[396504386,1765013135067,-256.53172956,0.00015135,2]
[396504387,1765013135808,4259.37,0.00014722,2]
[396504388,1765013137236,-245.76106695,0.00015135,2]
[396504389,1765013143467,-177.2784073,0.00015135,2]
[396504390,1765013146800,194.49951878,0.00015035,2]
[396504391,1765013146845,-289.63368448,0.00015135,2]
[396504392,1765013149914,-271.27813448,0.00015135,2]
[396504393,1765013152011,-184.46659073,0.00015135,2]
[396504394,1765013153508,-176.96052575,0.00015135,2]
[396504395,1765013153784,327.27461369,0.000151,2]
[396504396,1765013155569,-299.29081231,0.00015135,2]
[396504397,1765013158326,-300.70918769,0.00015135,2]
[396504398,1765013161740,-300.0,0.00015135,2]
[396504399,1765013178956,500.0,0.00015135,2]
[396504400,1765013179196,506.24410093,0.00015135,2]
[396504402,1765013187417,166.66,0.00013977,2]
[396504403,1765013187617,166.66,0.00014271,2]
[396504404,1765013187823,166.66,0.00014565,2]
[396504405,1765013188017,166.66,0.0001486,2]
[396504406,1765013196428,500.0,0.00015135,2]
[396504407,1765013196727,500.0,0.00015135,2]
[396504409,1765013224039,300.0,0.00015134,2]
[396504412,1765013286556,419.69771108,0.0001439,2]
[396504413,1765013286579,1991.36682226,0.0001439,2]
[396504415,1765013299623,3696.56998427,0.00015,2]
[396504419,1765013319051,3395.47964842,0.00015,2]
[396504420,1765013334884,500.0,0.00015135,2]
[396504421,1765013335114,416.59354505,0.00015135,2]
[396504422,1765013335137,83.40645495,0.00015135,2]
[396504424,1765013401252,300.0,0.00015134,2]
[396504425,1765013401292,1200.0,0.00015134,2]
[396504426,1765013401975,966.5705526,0.00015133,2]
[396504427,1765013403687,276.0,0.00015135,2]
[396504428,1765013403813,300.0,0.00015134,2]
[396504429,1765013407744,6874.03299245,0.00015035,2]
[396504430,1765013407772,10000.01,0.00015035,2]
[396504431,1765013407797,10000.01,0.00015035,2]
[396504432,1765013407822,10000.01,0.00015035,2]
[396504433,1765013407846,10000.01,0.00015035,2]
[396504434,1765013407871,10000.01,0.00015035,2]
[396504435,1765013407895,10000.01,0.00015035,2]
[396504436,1765013407919,10000.01,0.00015035,2]
[396504437,1765013407946,10000.01,0.00015035,2]
[396504438,1765013407973,6365.43,0.00015035,2]
[396504439,1765013408002,10000.0,0.00015035,2]
[396504440,1765013408025,10000.0,0.00015035,2]
[396504441,1765013408049,10000.0,0.00015035,2]
[396504442,1765013408075,10000.0,0.00015035,2]
[396504443,1765013408099,10000.0,0.00015035,2]
[396504444,1765013408122,10000.0,0.00015035,2]
[396504445,1765013408148,10000.0,0.00015035,2]
[396504446,1765013408172,10000.0,0.00015035,2]
[396504447,1765013408196,10000.0,0.00015035,2]
[396504448,1765013408221,10000.0,0.00015035,2]
[396504449,1765013408248,10000.0,0.00015035,2]
[396504450,1765013408272,10000.0,0.00015035,2]
[396504451,1765013408296,10000.0,0.00015035,2]
[396504452,1765013408320,10000.0,0.00015035,2]
[396504453,1765013408344,10000.0,0.00015035,2]
[396504454,1765013408369,10000.0,0.00015035,2]
[396504455,1765013408393,10000.0,0.00015035,2]
[396504456,1765013409203,-303.55264971,0.00015035,2]
[396504457,1765013412320,-10000.01,0.00015035,2]
[396504458,1765013412339,-10000.01,0.00015035,2]
[396504459,1765013412926,-156.09342774,0.00015035,2]
[396504460,1765013414557,-157.46286867,0.00015035,2]
[396504461,1765013416201,-10000.01,0.00015035,2]
[396504462,1765013416232,-166.27444294,0.00015035,2]
[396504463,1765013416427,-10000.01,0.00015035,2]
[396504464,1765013416459,-10000.01,0.00015035,2]
[396504465,1765013416569,-10000.01,0.00015035,2]
[396504466,1765013416682,-10000.01,0.00015035,2]
[396504467,1765013416819,-10000.01,0.00015035,2]
[396504468,1765013417543,-10000.01,0.00015035,2]
[396504469,1765013417582,-10000.01,0.00015035,2]
[396504470,1765013417608,-10000.01,0.00015035,2]
[396504471,1765013417629,-10000.01,0.00015035,2]
[396504472,1765013417660,-10000.01,0.00015035,2]
[396504473,1765013417684,-10000.01,0.00015035,2]
[396504474,1765013417732,-10000.01,0.00015035,2]
[396504475,1765013417826,-10000.01,0.00015035,2]
[396504476,1765013417989,-10000.01,0.00015035,2]
[396504477,1765013419305,-10000.01,0.00015035,2]
[396504478,1765013419374,-10000.01,0.00015035,2]
[396504479,1765013419447,-284.21660658,0.00015035,2]
[396504480,1765013419478,-10000.01,0.00015035,2]
[396504481,1765013419736,-10000.01,0.00015035,2]
[396504482,1765013419826,-10000.01,0.00015035,2]
[396504483,1765013419961,-10000.01,0.00015035,2]
[396504484,1765013420113,-10000.01,0.00015035,2]
[396504485,1765013420220,-10000.01,0.00015035,2]
[396504486,1765013420327,-10000.01,0.00015035,2]
[396504487,1765013420465,-10000.01,0.00015035,2]
[396504488,1765013420591,-10000.01,0.00015035,2]
[396504489,1765013420732,-10000.01,0.00015035,2]
[396504490,1765013420863,-10000.01,0.00015035,2]
[396504491,1765013420978,-10000.01,0.00015035,2]
[396504492,1765013421329,-10000.01,0.00015035,2]
[396504493,1765013429015,-170.18707895,0.00015035,2]
[396504494,1765013429041,-138.72617357,0.00015035,2]
[396504506,1765013431995,-73223.30349004,0.00015035,2]
[396504512,1765013432120,-421.62809693,0.00015035,2]
[396504547,1765013432537,-227.53282621,0.00015035,2]
[396504605,1765013433984,-570.26451729,0.00015035,2]
[396504606,1765013435519,-409.94636306,0.00015035,2]
[396504607,1765013437760,-179.25317493,0.00015035,2]
[396504609,1765013438768,-2684.97571554,0.00015035,2]
[396504610,1765013438814,-97836.90665434,0.00015035,2]
[396504611,1765013438824,-1000.0,0.00015135,2]
[396504612,1765013438834,-244.32357407,0.00015135,2]
[396504613,1765013438844,-300.0,0.00015142,2]
[396504614,1765013438853,-250.0,0.00015148,2]
[396504615,1765013438863,-166.66,0.00015154,2]
[396504616,1765013438872,-500.0,0.00015235,2]
[396504617,1765013438881,-548.69975346,0.00015235,2]
[396504618,1765013438891,-6285.28145723,0.00015242,2]
[396504619,1765013438900,-150.0,0.00015288,2]
[396504620,1765013438910,-150.0,0.00015288,2]
[396504621,1765013438919,-150.0,0.00015288,2]
[396504622,1765013438928,-150.0,0.00015288,2]
[396504623,1765013438937,-150.0,0.00015288,2]
[396504624,1765013438947,-150.0,0.00015288,2]
[396504625,1765013438957,-150.0,0.00015288,2]
[396504626,1765013438966,-150.0,0.00015288,2]
[396504627,1765013438976,-150.0,0.00015288,2]
[396504628,1765013438985,-150.0,0.00015288,2]
[396504629,1765013438995,-150.0,0.00015288,2]
[396504630,1765013439004,-150.0,0.00015288,2]
[396504631,1765013439014,-150.0,0.00015288,2]
[396504632,1765013439024,-150.0,0.00015335,2]
[396504633,1765013439033,-150.0,0.00015335,2]
[396504634,1765013439043,-500.0,0.00015335,2]
[396504635,1765013439053,-500.0,0.00015335,2]
[396504636,1765013439062,-150.0,0.00015348,2]
[396504637,1765013439075,-150.0,0.00015377,2]
[396504638,1765013439085,-150.0,0.00015382,2]
[396504639,1765013439095,-150.0,0.00015382,2]
[396504640,1765013439104,-150.0,0.00015394,2]
[396504641,1765013439115,-150.0,0.00015394,2]
[396504642,1765013439125,-169.39,0.00015403,2]
[396504643,1765013439136,-150.0,0.00015409,2]
[396504644,1765013439147,-150.0,0.00015418,2]
[396504645,1765013439157,-150.0,0.00015429,2]
[396504646,1765013439167,-150.0,0.00015429,2]
[396504647,1765013439177,-170.18707893,0.00015444,2]
[396504648,1765013439187,-166.66,0.00015448,2]
[396504649,1765013439196,-6285.28145723,0.00015449,2]
[396504650,1765013439206,-150.0,0.00015466,2]
[396504651,1765013439216,-150.0,0.0001547,2]
[396504652,1765013439225,-150.0,0.00015476,2]
[396504653,1765013439234,-150.0,0.00015476,2]
[396504654,1765013439244,-150.0,0.000155,2]
[396504655,1765013439253,-150.0,0.000155,2]
[396504656,1765013439262,-150.0,0.00015524,2]
[396504657,1765013439271,-150.0,0.00015524,2]
[396504658,1765013439280,-150.0,0.0001553,2]
[396504659,1765013439290,-150.0,0.00015549,2]
[396504660,1765013439298,-150.0,0.00015556,2]
[396504661,1765013439308,-150.0,0.00015571,2]
[396504662,1765013439317,-150.0,0.00015571,2]
[396504663,1765013439326,-150.0,0.00015571,2]
[396504664,1765013439336,-152.99,0.00015584,2]
[396504665,1765013439346,-315.61,0.00015585,2]
[396504666,1765013439355,-150.0,0.00015591,2]
[396504667,1765013439365,-150.0,0.00015606,2]
[396504668,1765013439374,-150.0,0.00015606,2]
[396504669,1765013439383,-150.0,0.00015618,2]
[396504670,1765013439393,-150.0,0.00015618,2]
[396504671,1765013439402,-150.0,0.00015645,2]
[396504672,1765013439412,-150.0,0.00015652,2]
[396504673,1765013439421,-6285.28145723,0.00015657,2]
[396504674,1765013439432,-150.0,0.00015665,2]
[396504675,1765013439443,-150.0,0.00015665,2]
[396504676,1765013439453,-150.0,0.0001568,2]
[396504677,1765013439464,-181.03,0.000157,2]
[396504678,1765013439473,-1105.02,0.000157,2]
[396504679,1765013439483,-2429.7,0.000157,2]
[396504680,1765013439492,-300.96,0.000157,2]
[396504681,1765013439501,-425.93,0.000157,2]
[396504682,1765013439512,-150.0,0.00015712,2]
[396504683,1765013439521,-150.0,0.00015712,2]
[396504684,1765013439530,-150.0,0.00015712,2]
[396504685,1765013439539,-150.0,0.00015712,2]
[396504686,1765013439548,-150.0,0.00015712,2]
[396504687,1765013439557,-150.0,0.00015735,2]
[396504688,1765013439566,-150.0,0.0001576,2]
[396504689,1765013439575,-150.0,0.0001576,2]
[396504690,1765013439584,-150.0,0.00015773,2]
[396504691,1765013439593,-226.0,0.00015794,2]
[396504692,1765013439602,-150.0,0.00015807,2]
[396504693,1765013439612,-150.0,0.00015807,2]
[396504694,1765013439621,-150.0,0.0001581,2]
[396504695,1765013439630,-150.0,0.00015818,2]
[396504696,1765013439640,-150.0,0.00015818,2]
[396504697,1765013439650,-260.48877009,0.00015824,2]
[396504698,1765013439659,-150.0,0.00015824,2]
[396504699,1765013439668,-150.0,0.00015834,2]
[396504700,1765013439679,-156.95,0.00015834,2]
[396504701,1765013439688,-6955.21435,0.0001584,2]
[396504702,1765013439698,-150.0,0.00015854,2]
[396504703,1765013439707,-150.0,0.00015854,2]
[396504704,1765013439718,-150.0,0.00015854,2]
[396504705,1765013439728,-256.28651657,0.00015854,2]
[396504706,1765013439738,-6285.28145723,0.00015864,2]
[396504707,1765013439747,-1261.0,0.0001587,2]
[396504708,1765013439758,-182.0,0.0001587,2]
[396504709,1765013439767,-9704.56328082,0.0001587,2]
[396504710,1765013439776,-200.0,0.00015872,2]
[396504711,1765013439786,-150.0,0.00015894,2]
[396504712,1765013439795,-500.0,0.00015899,2]
[396504713,1765013439804,-4795.8497,0.000159,2]
[396504714,1765013439813,-4129.05770489,0.000159,2]
[396504715,1765013439824,-1470.0,0.00015901,2]
[396504716,1765013439835,-150.0,0.00015901,2]
[396504717,1765013439845,-150.0,0.00015901,2]
[396504718,1765013439856,-1330.9411836,0.00015903,2]
[396504719,1765013439866,-150.47649668,0.00015903,2]
[396504720,1765013439879,-849.32776231,0.00015906,2]
[396504721,1765013439889,-150.0,0.00015913,2]
[396504722,1765013439900,-150.0,0.00015925,2]
[396504723,1765013439912,-150.0,0.00015925,2]
[396504724,1765013439922,-150.0,0.00015941,2]
[396504725,1765013439931,-150.0,0.00015948,2]
[396504726,1765013439940,-150.0,0.00015948,2]
[396504727,1765013439949,-150.0,0.00015955,2]
[396504728,1765013439959,-5718.8685587,0.00015964,2]
[396504729,1765013439968,-94434.6378103,0.00015965,2]
[396504730,1765013439978,-52645.5761418,0.00015965,2]
[396504731,1765013439988,-6955.21436,0.0001597,2]
[396504732,1765013439997,-519.55456596,0.0001599,2]
[396504733,1765013440007,-150.0,0.00015995,2]
[396504734,1765013440016,-150.0,0.00015995,2]
[396504735,1765013440026,-1099.67657996,0.00015999,5]
[396504736,1765013440035,-500.0,0.00015999,2]
[396504738,1765013440045,-265.5618935,0.00015999,2]
[396504740,1765013440055,-500.0,0.00015999,2]
[396504741,1765013440067,-500.0,0.00015999,2]
[396504742,1765013440077,-500.0,0.00015999,2]
[396504743,1765013440087,-500.0,0.00015999,2]
[396504744,1765013440096,-588.90373772,0.00015999,2]
[396504745,1765013440107,-516.18265431,0.00015999,2]
[396504746,1765013440116,-611.46471332,0.00015999,2]
[396504747,1765013440125,-3110.0,0.00016,2]
[396504748,1765013440135,-50338.33085398,0.00016,4]
[396504749,1765013440165,-3527.65124464,0.00016,4]
[396504752,1765013441243,-4505.45,0.00015984,2]
[396504753,1765013441275,-4823.69043218,0.00015984,2]
[396504754,1765013441297,-375.42284862,0.00015984,2]
[396504755,1765013441308,-5351.05097677,0.00016,4]
[396504756,1765013441319,-1269.9727187,0.00016,4]
[396504757,1765013441355,-15416.23346765,0.00016,4]
[396504758,1765013441714,-1.7e-07,0.00016,4]
[396504762,1765013443208,-170.18707893,0.00015854,2]
[396504763,1765013443218,-2278.24456764,0.00016,4]
[396504764,1765013443229,-2045.39356299,0.00016,4]
[396504765,1765013443241,-834.90360017,0.00016,4]
[396504766,1765013443252,-1340.88173211,0.00016,4]
[396504767,1765013446085,-1252.52311754,0.00016,4]
[396504768,1765013446387,-944.01087015,0.00016,4]
[396504769,1765013446398,-553.29706463,0.00016,4]
[396504770,1765013446409,-1159.3,0.00016,4]
[396504773,1765013516717,500.0,0.00015034,2]
[396504774,1765013516749,199.94850002,0.00015034,2]
[396504775,1765013516805,500.0,0.00015034,2]
[396504776,1765013516852,500.0,0.00015034,2]
[396504777,1765013516898,500.0,0.00015034,2]
[396504778,1765013516972,500.0,0.00015034,2]
[396504779,1765013517042,500.0,0.00015034,2]
[396504780,1765013517099,500.0,0.00015034,2]
[396504781,1765013517139,500.0,0.00015034,2]
[396504782,1765013517181,500.0,0.00015034,2]
[396504783,1765013517234,500.0,0.00015034,2]
[396504784,1765013517270,500.0,0.00015034,2]
[396504785,1765013517321,500.0,0.00015034,2]
[396504786,1765013517371,500.0,0.00015034,2]
[396504787,1765013517408,500.0,0.00015034,2]
[396504788,1765013517441,500.0,0.00015034,2]
[396504789,1765013517479,533.33760733,0.00015034,2]
[396504790,1765013517517,500.0,0.00015034,2]
[396504791,1765013517563,500.0,0.00015034,2]
[396504792,1765013517617,500.0,0.00015034,2]
[396504793,1765013517658,266.72389265,0.00015034,2]
[396504794,1765013517684,233.27610735,0.00015034,2]
[396504795,1765013517725,500.0,0.00015034,2]
[396504796,1765013517763,500.0,0.00015034,2]
[396504797,1765013517826,500.0,0.00015034,2]
[396504798,1765013517870,500.0,0.00015034,2]
[396504799,1765013577638,10000.01,0.00015035,2]
[396504800,1765013577662,10000.01,0.00015035,2]
[396504801,1765013577689,10000.01,0.00015035,2]
[396504802,1765013577714,10000.01,0.00015035,2]
[396504803,1765013577738,10000.01,0.00015035,2]
[396504804,1765013577762,10000.01,0.00015035,2]
[396504805,1765013577786,10000.01,0.00015035,2]
[396504806,1765013577809,10000.01,0.00015035,2]
[396504807,1765013577841,10000.01,0.00015035,2]
[396504808,1765013577866,10000.01,0.00015035,2]
[396504809,1765013581118,-431.8581715,0.00015035,2]
[396504810,1765013585045,-300.0,0.00015034,2]
[396504811,1765013585068,-37.66784844,0.00015034,2]
[396504812,1765013587192,-200.0,0.00015034,2]
[396504813,1765013589361,-62.33215156,0.00015034,2]
[396504814,1765013589384,-187.66784844,0.00015034,2]
[396504815,1765013593561,-100.33215156,0.00015034,2]
[396504816,1765013593585,-145.68826414,0.00015035,2]
[396504817,1765013595230,-595.03276176,0.00015035,2]
[396504818,1765013596725,-153.76618104,0.00015035,2]
[396504819,1765013599489,-431.46689418,0.00015035,2]
[396504820,1765013602292,-225.91819939,0.00015035,2]
[396504821,1765013603035,6135.36979408,0.00015035,2]
[396504822,1765013606036,-472.68663344,0.00015035,2]
[396504823,1765013608904,-300.0,0.00015035,2]
[396504824,1765013610429,-307.98806503,0.00015035,2]
[396504825,1765013611961,-276.85341313,0.00015035,2]
[396504826,1765013614640,-215.50611334,0.00015035,2]
[396504827,1765013616164,-264.66655177,0.00015035,2]
[396504828,1765013618836,-229.54637739,0.00015035,2]
[396504829,1765013620964,-343.07861264,0.00015035,2]
[396504830,1765013621457,164.65002493,0.00014935,2]
[396504831,1765013623646,-458.69138335,0.00015035,2]
[396504832,1765013626353,-297.31035049,0.00015035,2]
[396504833,1765013628231,-255.08896124,0.00015035,2]
[396504834,1765013629976,-245.60118425,0.00015035,2]
[396504835,1765013631540,-151.65343,0.00015035,2]
[396504836,1765013636560,-255.83707465,0.00015035,2]
[396504837,1765013638892,-293.73804115,0.00015035,2]
[396504838,1765013640320,-231.80555242,0.00015035,2]
[396504839,1765013642466,-379.94827151,0.00015035,2]
[396504840,1765013644651,-225.52885596,0.00015035,2]
[396504841,1765013647624,-269.5080365,0.00015035,2]
[396504842,1765013649827,-207.34849227,0.00015035,2]
[396504843,1765013652732,-188.66930105,0.00015035,2]
[396504844,1765013655389,-480.76559551,0.00015035,2]
[396504845,1765013657279,2450.403038,0.0001496,2]
[396504846,1765013657530,-319.46173861,0.00015035,2]
[396504847,1765013658419,1000.0,0.00022,30]
[396504848,1765013661872,-307.25812707,0.00015035,2]
[396504849,1765013665317,-182.89270331,0.00015035,2]
[396504850,1765013669104,-478.49219958,0.00015035,2]
[396504851,1765013671877,-414.55378881,0.00015035,2]
[396504853,1765013672576,451.4073171,0.00015034,2]
[396504854,1765013672622,173.9261421,0.00015034,2]
[396504855,1765013674078,-528.15159698,0.00015035,2]
[396504856,1765013675850,500.0,0.00015034,2]
[396504857,1765013675920,124.25368379,0.00015034,2]
[396504858,1765013675953,375.74631621,0.00015034,2]
[396504859,1765013676049,337.03751192,0.00015034,2]
[396504860,1765013676354,-217.98138319,0.00015035,2]
[396504861,1765013679028,-231.51766019,0.00015035,2]
[396504862,1765013680586,-217.75805945,0.00015035,2]
[396504864,1765013683745,-243.45359112,0.00015035,2]
[396504865,1765013685288,-499.07298463,0.00015035,2]
[396504866,1765013688151,-187.51766019,0.00015035,2]
[396504868,1765013691095,-251.07577082,0.00015035,2]
[396504869,1765013693289,-200.45362261,0.00015035,2]
[396504870,1765013695323,-285.9509075,0.00015035,2]
[396504871,1765013697390,249.13665733,0.00014935,2]
[396504872,1765013698291,-280.66461369,0.00015035,2]
[396504873,1765013700121,-191.628433,0.00015035,2]
[396504874,1765013701207,300.0,0.00015034,2]
[396504875,1765013701281,1200.0,0.00015034,2]
[396504876,1765013701774,-174.77087134,0.00015035,2]
[396504877,1765013703859,-429.40019948,0.00015035,2]
[396504878,1765013705365,-300.0,0.00015035,2]
[396504879,1765013708040,-397.77773669,0.00015035,2]
[396504880,1765013712341,-422.76234728,0.00015035,2]
[396504881,1765013714980,-331.80715662,0.00015035,2]
[396504882,1765013717167,-349.80059099,0.00015035,2]
[396504883,1765013720920,-281.93673889,0.00015035,2]
[396504884,1765013724381,-330.44750719,0.00015035,2]
[396504885,1765013757976,162.16511027,0.00015035,2]
[396504886,1765013761215,300.0,0.00015034,2]
[396504887,1765013761790,300.0,0.00015034,2]
[396504888,1765013776655,315.98512197,0.00015034,2]
[396504889,1765013807515,241.32,0.00015035,2]